bitfinex/quotes_SOLUSD_20230905
["timestamp","ask_amount","ask_price","bid_price","bid_amount"]
[1693921504884,62.928,19.677,19.666,15.23948]
[1693921508989,62.928,19.677,19.663,4.49999011]
[1693921509186,55.0,19.677,19.665,7.932]
[1693921509404,55.0,19.677,19.665,33.561]
[1693921510194,55.0,19.677,19.665,7.932]
[1693921515503,90.5301,19.678,19.666,15.23948]
[1693921515716,90.5301,19.678,19.666,23.17148]
[1693921516404,7.927,19.679,19.666,23.17148]
[1693921516590,31.4,19.68,19.666,23.17148]
[1693921516892,55.0,19.679,19.666,23.17148]
[1693921518110,62.927,19.679,19.666,23.17148]
[1693921519701,55.0,19.679,19.666,23.17148]
[1693921520300,62.927,19.679,19.666,23.17148]
[1693921526213,89.49013483,19.679,19.666,23.17148]
[1693921527702,89.49013483,19.679,19.666,15.23948]
[1693921529909,81.56313483,19.679,19.666,23.17148]
[1693921530303,7.927,19.678,19.666,23.17148]
[1693921530610,55.0,19.677,19.666,23.17148]
[1693921530999,55.0,19.678,19.666,23.17148]
[1693921533602,62.927,19.678,19.666,23.17148]
[1693921534210,55.0,19.678,19.666,23.17148]
[1693921534516,55.0,19.679,19.666,23.17148]
[1693921534918,62.927,19.679,19.666,23.17148]
[1693921535416,62.927,19.679,19.666,15.23948]
[1693921540612,62.927,19.679,19.666,23.17148]
[1693921541017,31.4,19.68,19.666,23.17148]
[1693921541217,90.2475,19.684,19.666,79.10548]
[1693921541417,98.1725,19.684,19.666,79.10548]
[1693921541622,7.925,19.684,19.666,79.10548]
[1693921542208,31.4,19.68,19.666,79.10548]
[1693921542409,99.0635,19.686,19.666,79.10548]
[1693921542618,20.0,19.685,19.666,79.10548]
[1693921542909,27.924,19.685,19.666,79.10548]
[1693921543711,55.0,19.684,19.666,79.10548]
[1693921543915,62.925,19.684,19.666,79.10548]
[1693921544520,55.0,19.684,19.666,79.10548]
[1693921545832,62.925,19.684,19.666,79.10548]
[1693921546927,7.925,19.684,19.666,79.10548]
[1693921547138,204.13871537,19.687,19.67,31.4]
[1693921547424,177.58109203,19.687,19.675,33.544]
[1693921547619,177.58109203,19.687,19.676,15.23174]
[1693921547820,177.58109203,19.687,19.679,7.927]
[1693921548020,177.58109203,19.687,19.679,23.15642]
[1693921551637,177.58109203,19.687,19.68,31.4]
[1693921551946,177.58109203,19.687,19.681,23.15387]
[1693921552734,94.5192,19.696,19.682,15.22709]
[1693921552933,25.587,19.697,19.682,15.22709]
[1693921553127,92.374,19.698,19.683,27.925]
[1693921553321,92.374,19.698,19.684,15.22555]
[1693921553529,92.374,19.698,19.684,23.15055]
[1693921553713,55.0,19.697,19.684,23.15055]
[1693921553923,62.92,19.697,19.684,23.15055]
[1693921554117,7.92,19.697,19.684,23.15055]
[1693921554426,208.98109203,19.7,19.689,7.923]
[1693921554631,208.98109203,19.7,19.69,15.22091]
[1693921555233,216.89909203,19.7,19.69,15.22091]
[1693921557423,177.58109203,19.7,19.69,46.62091]
[1693921557927,177.58109203,19.7,19.69,54.54291]
[1693921558333,177.58109203,19.7,19.69,23.14291]
[1693921560231,177.58109203,19.7,19.69,15.22091]
[1693921560232,216.89909203,19.7,19.69,15.22091]
[1693921560532,55.0,19.699,19.69,15.22091]
[1693921561634,216.89909203,19.7,19.69,15.22091]
[1693921561635,208.98109203,19.7,19.69,15.22091]
[1693921561833,177.58109203,19.7,19.69,23.14291]
[1693921562246,177.58109203,19.7,19.69,54.54291]
[1693921562733,177.58109203,19.7,19.691,55.0]
[1693921562938,177.58109203,19.7,19.694,7.921]
[1693921563341,92.374,19.703,19.694,7.921]
[1693921563737,92.374,19.703,19.695,15.21704]
[1693921564130,31.4,19.71,19.695,15.21704]
[1693921564330,148.0518,19.709,19.695,15.21704]
[1693921564536,7.915,19.707,19.695,23.13704]
[1693921564733,55.0,19.706,19.695,23.13704]
[1693921565534,93.0518,19.709,19.695,23.13704]
[1693921565726,93.0518,19.709,19.696,55.0]
[1693921565932,93.0518,19.709,19.699,7.918]
[1693921566642,15.3900457,19.714,19.699,7.918]
[1693921567147,23.3030457,19.714,19.699,7.918]
[1693921567531,7.913,19.714,19.699,7.918]
[1693921567737,7.913,19.714,19.7,31.4]
[1693921567942,92.7294,19.718,19.701,7.918]
[1693921568354,92.7294,19.718,19.702,75.0]
[1693921568641,92.7294,19.718,19.706,33.491]
[1693921569044,7.91,19.72,19.707,15.20778]
[1693921569345,7.91,19.72,19.707,23.12278]
[1693921569542,202.94502448,19.724,19.707,23.12278]
[1693921569747,7.909,19.723,19.708,55.0]
[1693921569939,7.909,19.723,19.707,15.20778]
[1693921570129,7.909,19.723,19.708,7.915]
[1693921570329,177.58109203,19.724,19.708,7.915]
[1693921570652,611.98920303,19.725,19.709,15.20623]
[1693921570953,611.98920303,19.725,19.712,7.913]
[1693921571333,611.98920303,19.725,19.71,7.914]
[1693921571536,7.909,19.723,19.71,7.914]
[1693921571733,55.0,19.722,19.711,15.20469]
[1693921571933,7.91,19.721,19.711,15.20469]
[1693921572336,62.909,19.722,19.711,15.20469]
[1693921573747,33.464,19.722,19.711,15.20469]
[1693921575255,55.0,19.721,19.711,15.20469]
[1693921575549,7.91,19.72,19.711,15.20469]
[1693921575754,55.0,19.719,19.711,15.20469]
[1693921575934,62.911,19.719,19.711,15.20469]
[1693921577042,7.911,19.719,19.711,15.20469]
[1693921577239,7.91,19.721,19.711,15.20469]
[1693921577650,7.909,19.723,19.711,15.20469]
[1693921578550,55.0,19.722,19.711,15.20469]
[1693921578749,62.909,19.722,19.711,15.20469]
[1693921585751,62.909,19.722,19.704,44.98487956]
[1693921585961,62.909,19.722,19.705,15.20932]
[1693921587075,62.909,19.722,19.705,23.12532]
[1693921590659,89.41825562,19.722,19.705,23.12532]
[1693921591857,62.909,19.722,19.705,23.12532]
[1693921593354,62.909,19.722,19.705,15.20932]
[1693921594671,62.909,19.722,19.705,23.12532]
[1693921596363,7.909,19.722,19.705,23.12532]
[1693921597572,48.21762943,19.722,19.705,23.12532]
[1693921597765,55.0,19.721,19.705,23.12532]
[1693921597965,7.911,19.718,19.705,23.12532]
[1693921598169,55.0,19.717,19.705,23.12532]
[1693921600759,55.0,19.718,19.705,23.12532]
[1693921601673,94.8194,19.717,19.705,23.12532]
[1693921601859,55.0,19.716,19.705,23.12532]
[1693921602874,94.8194,19.717,19.705,23.12532]
[1693921603066,7.912,19.717,19.705,15.20932]
[1693921603261,55.0,19.716,19.705,15.20932]
[1693921603972,55.0,19.716,19.705,23.12532]
[1693921605564,55.0,19.717,19.705,23.12532]
[1693921610062,62.912,19.717,19.705,23.12532]
[1693921613274,55.0,19.717,19.705,23.12532]
[1693921613985,62.911,19.717,19.705,15.20932]
[1693921614170,62.911,19.717,19.705,23.12532]
[1693921614576,55.0,19.717,19.705,23.12532]
[1693921614977,62.912,19.717,19.705,23.12532]
[1693921615374,55.0,19.717,19.705,23.12532]
[1693921616780,62.912,19.717,19.705,23.12532]
[1693921617884,62.912,19.717,19.705,22.62532]
[1693921620678,55.0,19.717,19.705,22.62532]
[1693921621281,55.0,19.717,19.705,14.70932]
[1693921621476,62.911,19.717,19.705,14.70932]
[1693921621682,62.911,19.717,19.704,7.916]
[1693921621881,62.911,19.717,19.701,73.02940428]
[1693921622083,62.911,19.717,19.704,7.917]
[1693921622274,55.0,19.717,19.704,7.917]
[1693921622874,107.5313,19.718,19.704,7.917]
[1693921622875,99.6203,19.718,19.704,7.917]
[1693921623188,15.09893454,19.72,19.71,31.29]
[1693921623388,15.09893454,19.72,19.713,7.913]
[1693921623587,589.1,19.725,19.713,7.913]
[1693921624177,55.0,19.724,19.713,7.913]
[1693921624977,589.1,19.725,19.713,7.913]
[1693921625689,589.1,19.725,19.715,7.912]
[1693921625890,687.2082,19.727,19.715,7.912]
[1693921626084,20.0,19.726,19.715,7.912]
[1693921626284,27.908,19.726,19.714,15.20238]
[1693921626789,55.0,19.725,19.714,15.20238]
[1693921626975,55.0,19.725,19.714,23.11538]
[1693921627778,20.0,19.726,19.714,23.11538]
[1693921628278,27.908,19.726,19.714,15.20238]
[1693921628486,26.50786693,19.728,19.714,15.20238]
[1693921628692,167.36349392,19.731,19.715,23.11361]
[1693921629186,159.45749392,19.731,19.716,55.0]
[1693921629386,159.45749392,19.731,19.72,39.2]
[1693921629786,391.5,19.733,19.72,39.2]
[1693921629988,93.0024,19.734,19.72,39.2]
[1693921630192,7.905,19.734,19.72,54.39775]
[1693921631575,62.905,19.733,19.72,54.39775]
[1693921631780,62.905,19.733,19.72,15.19775]
[1693921632380,62.905,19.733,19.72,23.10775]
[1693921632589,99.4317,19.732,19.72,23.10775]
[1693921632789,55.0,19.731,19.72,23.10775]
[1693921635091,55.0,19.731,19.72,15.19775]
[1693921635295,62.906,19.731,19.72,15.19775]
[1693921636393,55.0,19.731,19.72,15.19775]
[1693921636979,62.906,19.731,19.72,23.10775]
[1693921637391,62.906,19.731,19.72,15.19775]
[1693921639395,55.0,19.731,19.72,23.10775]
[1693921640586,107.3367,19.732,19.72,23.10775]
[1693921640784,99.4317,19.732,19.72,54.35775]
[1693921641190,99.4317,19.732,19.721,15.19698]
[1693921641389,99.4317,19.732,19.723,7.909]
[1693921641796,99.4317,19.732,19.724,15.19467]
[1693921642900,7.905,19.733,19.724,15.19467]
[1693921643203,589.1,19.736,19.724,23.10267]
[1693921643416,20.0,19.735,19.724,23.10267]
[1693921644501,27.904,19.735,19.724,23.10267]
[1693921645303,27.904,19.735,19.724,15.19467]
[1693921647307,20.0,19.735,19.724,15.19467]
[1693921647510,99.1712,19.74,19.724,23.10367]
[1693921647511,107.0732,19.74,19.724,23.10367]
[1693921647716,107.0732,19.74,19.725,55.0]
[1693921647913,107.0732,19.74,19.729,7.907]
[1693921648218,107.0732,19.74,19.73,15.19005]
[1693921648801,99.1712,19.74,19.73,15.19005]
[1693921649311,107.0732,19.74,19.73,15.19005]
[1693921649819,55.0,19.739,19.73,15.19005]
[1693921651609,99.1712,19.74,19.73,15.19005]
[1693921651803,107.0732,19.74,19.73,15.19005]
[1693921654800,99.1712,19.74,19.73,15.19005]
[1693921655613,99.1712,19.74,19.73,23.09605]
[1693921656307,7.899,19.748,19.731,20.0]
[1693921656609,7.899,19.748,19.736,7.904]
[1693921656815,23.46463608,19.748,19.736,7.904]
[1693921657018,23.46463608,19.748,19.73,71.98405]
[1693921657317,23.46463608,19.748,19.731,20.0]
[1693921657518,23.46463608,19.748,19.73,46.44005]
[1693921657715,7.901,19.742,19.73,15.19005]
[1693921657922,55.0,19.741,19.73,23.09605]
[1693921658722,55.0,19.742,19.73,23.09605]
[1693921658912,62.902,19.742,19.73,15.19005]
[1693921659713,7.901,19.743,19.73,15.19005]
[1693921659917,26.47799041,19.744,19.73,23.09605]
[1693921660117,106.3977,19.746,19.73,23.09605]
[1693921660318,106.3977,19.746,19.73,48.64005]
[1693921660717,7.9,19.746,19.73,48.64005]
[1693921661113,55.0,19.745,19.73,48.64005]
[1693921661320,23.46463608,19.748,19.735,7.904]
[1693921661620,55.0,19.747,19.735,7.904]
[1693921662016,7.899,19.748,19.735,7.904]
[1693921662215,25.36393245,19.75,19.735,23.0902]
[1693921662415,40.79576215,19.75,19.735,23.0902]
[1693921663221,55.0,19.749,19.735,23.0902]
[1693921663422,62.899,19.749,19.735,23.0902]
[1693921666626,55.0,19.749,19.735,23.0902]
[1693921666832,55.0,19.749,19.736,15.18543]
[1693921667125,82.17842813,19.75,19.738,7.903]
[1693921667330,15.4318297,19.75,19.739,15.18312]
[1693921667630,15.4318297,19.75,19.74,7.902]
[1693921667826,15.4318297,19.75,19.74,15.18235]
[1693921668027,23.3298297,19.75,19.74,15.18235]
[1693921668631,55.0,19.749,19.74,15.18235]
[1693921668829,15.4318297,19.75,19.74,15.18235]
[1693921669222,55.0,19.749,19.74,15.18235]
[1693921669725,15.4318297,19.75,19.74,15.18235]
[1693921669927,7.898,19.751,19.74,23.08435]
[1693921670233,23.3131039,19.751,19.74,15.18235]
[1693921671536,23.3131039,19.751,19.737,7.903]
[1693921671835,7.899,19.749,19.737,23.08766]
[1693921672528,7.899,19.749,19.737,15.18466]
[1693921672715,55.0,19.748,19.737,15.18466]
[1693921672920,55.0,19.748,19.737,23.08766]
[1693921673320,62.899,19.748,19.737,15.18466]
[1693921673719,62.899,19.748,19.735,7.904]
[1693921675630,62.899,19.748,19.733,7.905]
[1693921676429,89.37022377,19.748,19.733,7.905]
[1693921678527,20.0,19.747,19.729,7.906]
[1693921678716,7.902,19.742,19.729,7.906]
[1693921679122,55.0,19.741,19.729,7.906]
[1693921679428,7.901,19.743,19.729,7.906]
[1693921679645,55.0,19.742,19.729,7.906]
[1693921679832,55.0,19.742,19.729,23.09682]
[1693921680028,147.1623,19.742,19.729,23.09682]
[1693921681724,92.1623,19.742,19.73,15.19005]
[1693921681926,92.1623,19.742,19.73,23.09605]
[1693921682236,100.0633,19.742,19.73,23.09605]
[1693921682441,7.901,19.742,19.731,15.18928]
[1693921682940,55.0,19.741,19.731,15.18928]
[1693921683123,62.902,19.741,19.731,15.18928]
[1693921683319,55.0,19.741,19.731,15.18928]
[1693921683537,55.0,19.742,19.731,23.09528]
[1693921684129,141.30405012,19.745,19.731,23.09528]
[1693921684338,55.0,19.744,19.731,23.09528]
[1693921684537,62.901,19.744,19.731,23.09528]
[1693921684933,62.901,19.744,19.731,15.18928]
[1693921686643,62.901,19.744,19.731,23.09528]
[1693921687933,62.901,19.744,19.731,15.18928]
[1693921690529,7.901,19.744,19.731,23.09528]
[1693921691241,7.901,19.744,19.731,15.18928]
[1693921691742,7.901,19.744,19.731,23.09528]
[1693921693347,55.0,19.743,19.731,23.09528]
[1693921693841,62.901,19.743,19.731,23.09528]
[1693921694751,92.1623,19.745,19.731,48.63828]
[1693921695049,92.1623,19.745,19.735,7.904]
[1693921695255,92.1623,19.745,19.735,23.0902]
[1693921695637,7.9,19.747,19.735,23.0902]
[1693921695843,15.4151039,19.751,19.735,15.1862]
[1693921695844,25.519,19.75,19.735,15.1862]
[1693921696344,7.899,19.748,19.735,23.0902]
[1693921696539,55.0,19.747,19.735,23.0902]
[1693921698434,150.4672,19.747,19.735,23.0902]
[1693921700050,95.4672,19.747,19.735,23.0902]
[1693921700255,95.4672,19.747,19.736,15.18543]
[1693921700436,26.47009532,19.752,19.739,7.903]
[1693921700644,35.73298527,19.756,19.74,15.18235]
[1693921700852,103.3632,19.755,19.741,7.902]
[1693921701147,103.3632,19.755,19.741,23.08359]
[1693921702146,7.896,19.755,19.741,23.08359]
[1693921702347,15.10187531,19.756,19.742,15.18082]
[1693921702654,7.896,19.755,19.742,23.08182]
[1693921703945,7.896,19.755,19.742,15.18082]
[1693921704639,55.0,19.754,19.742,15.18082]
[1693921704845,55.0,19.754,19.742,23.08182]
[1693921705157,7.897,19.755,19.742,23.08182]
[1693921705369,55.0,19.754,19.742,23.08182]
[1693921705650,62.897,19.754,19.742,23.08182]
[1693921706055,62.897,19.753,19.742,23.08182]
[1693921706844,55.0,19.753,19.742,23.08182]
[1693921707052,55.0,19.754,19.742,23.08182]
[1693921707256,7.897,19.755,19.742,23.08182]
[1693921707559,55.0,19.754,19.742,23.08182]
[1693921707756,62.897,19.754,19.742,23.08182]
[1693921707958,55.0,19.754,19.742,23.08182]
[1693921708157,62.897,19.755,19.742,23.08182]
[1693921708652,62.897,19.755,19.742,15.18082]
[1693921709158,7.897,19.755,19.742,15.18082]
[1693921709459,7.897,19.755,19.742,23.08182]
[1693921710163,7.897,19.755,19.742,15.18082]
[1693921710758,55.0,19.754,19.742,15.18082]
[1693921710987,7.898,19.751,19.742,15.18082]
[1693921714067,55.0,19.75,19.742,15.18082]
[1693921714265,54.65585402,19.756,19.742,15.18082]
[1693921714564,55.0,19.755,19.742,15.18082]
[1693921714767,7.897,19.754,19.742,15.18082]
[1693921716161,7.896,19.755,19.742,15.18082]
[1693921716356,7.897,19.754,19.742,15.18082]
[1693921720260,7.898,19.752,19.742,15.18082]
[1693921720968,7.897,19.754,19.742,23.08182]
[1693921721151,15.10187531,19.756,19.742,23.08182]
[1693921721152,7.897,19.753,19.742,23.08182]
[1693921721553,7.897,19.753,19.742,15.18082]
[1693921726368,31.18,19.75,19.742,15.18082]
[1693921726666,7.899,19.748,19.733,7.905]
[1693921726867,7.901,19.744,19.733,7.905]
[1693921727171,7.9,19.746,19.733,23.09274]
[1693921727370,7.9,19.746,19.734,15.18697]
[1693921727765,55.0,19.745,19.734,15.18697]
[1693921728166,7.9,19.746,19.734,23.09097]
[1693921728377,55.0,19.745,19.734,23.09097]
[1693921730164,55.0,19.744,19.734,15.18697]
[1693921730882,31.18,19.74,19.734,15.18697]
[1693921731183,62.903,19.739,19.734,15.18697]
[1693921731477,55.0,19.739,19.729,7.907]
[1693921732180,55.0,19.739,19.728,7.907]
[1693921732482,55.0,19.739,19.724,25.551]
[1693921732660,55.0,19.739,19.727,7.907]
[1693921733077,62.903,19.739,19.727,7.907]
[1693921734260,55.0,19.739,19.727,7.907]
[1693921734463,62.903,19.74,19.727,7.907]
[1693921734775,55.0,19.74,19.727,7.907]
[1693921737678,7.902,19.741,19.727,7.907]
[1693921737862,7.902,19.741,19.728,15.19159]
[1693921738061,55.0,19.74,19.728,23.09859]
[1693921738265,62.902,19.74,19.728,23.09859]
[1693921740269,62.902,19.74,19.728,15.19159]
[1693921743677,88.433,19.74,19.728,15.19159]
[1693921743974,175.387,19.74,19.713,83.0547]
[1693921744174,20.0,19.739,19.717,7.911]
[1693921744478,7.905,19.733,19.718,15.19929]
[1693921744868,55.0,19.732,19.718,15.19929]
[1693921745064,62.906,19.732,19.718,23.11029]
[1693921745265,97.8269,19.731,19.718,23.11029]
[1693921745477,55.0,19.73,19.718,23.11029]
[1693921745869,94.136,19.73,19.718,15.19929]
[1693921746179,94.136,19.73,19.718,23.11029]
[1693921748173,94.136,19.73,19.718,15.19929]
[1693921750182,94.136,19.73,19.718,23.11029]
[1693921750967,62.906,19.73,19.718,23.11029]
[1693921755787,62.906,19.73,19.718,10.19929]
[1693921756176,102.93439755,19.73,19.718,10.19929]
[1693921756881,102.93439755,19.73,19.712,25.565]
[1693921756882,102.06883776,19.729,19.706,7.916]
[1693921757081,33.464,19.723,19.706,7.916]
[1693921757287,33.464,19.723,19.701,25.582]
[1693921757288,58.82793245,19.723,19.701,25.582]
[1693921757591,31.23,19.72,19.702,27.917]
[1693921757789,7.912,19.716,19.702,27.917]
[1693921758192,55.0,19.715,19.702,7.917]
[1693921758376,55.0,19.715,19.698,55.84]
[1693921758377,7.913,19.714,19.697,7.919]
[1693921758693,31.3,19.71,19.695,7.92]
[1693921758876,7.915,19.709,19.695,7.92]
[1693921760079,31.3,19.71,19.695,7.92]
[1693921760577,55.0,19.713,19.696,15.21627]
[1693921760777,62.913,19.713,19.7,7.918]
[1693921761288,86.811168,19.72,19.701,25.36393245]
[1693921761593,31.3,19.72,19.706,7.916]
[1693921762591,39.21,19.72,19.706,7.916]
[1693921763089,7.91,19.72,19.706,7.916]
[1693921763387,91.376,19.721,19.706,7.916]
[1693921764294,99.286,19.721,19.706,7.916]
[1693921764787,55.0,19.72,19.706,7.916]
[1693921765784,91.376,19.721,19.707,55.0]
[1693921765988,91.376,19.721,19.711,7.914]
[1693921767484,91.376,19.721,19.709,7.914]
[1693921767689,91.376,19.721,19.707,80.574]
[1693921767690,99.286,19.721,19.707,55.0]
[1693921767887,7.91,19.721,19.707,62.915]
[1693921768190,7.909,19.723,19.707,103.69678]
[1693921768386,7.909,19.724,19.707,103.69678]
[1693921768583,62.909,19.723,19.707,103.69678]
[1693921768778,97.2863,19.725,19.707,103.69678]
[1693921768987,26.51800427,19.729,19.71,31.29]
[1693921769199,40.28006087,19.733,19.715,33.475]
[1693921769499,48.18506087,19.733,19.715,33.475]
[1693921769682,106.3794,19.732,19.715,33.475]
[1693921770091,7.905,19.732,19.715,33.475]
[1693921771087,7.905,19.734,19.72,7.91]
[1693921772287,7.905,19.734,19.718,7.911]
[1693921772493,7.906,19.731,19.719,7.91]
[1693921772897,7.906,19.731,19.715,55.791]
[1693921773197,55.0,19.73,19.713,25.566]
[1693921773397,62.907,19.73,19.716,7.911]
[1693921773609,25.54,19.734,19.716,7.911]
[1693921773898,7.905,19.733,19.716,7.911]
[1693921774099,7.905,19.733,19.717,70.20006]
[1693921774299,7.905,19.733,19.72,7.91]
[1693921775686,55.0,19.732,19.72,7.91]
[1693921776299,62.905,19.732,19.72,7.91]
[1693921776598,62.905,19.732,19.717,15.20006]
[1693921776903,62.905,19.732,19.718,7.911]
[1693921778592,55.0,19.732,19.718,7.911]
[1693921778897,55.0,19.733,19.718,7.911]
[1693921779407,62.905,19.733,19.718,7.911]
[1693921784803,98.4744,19.738,19.72,31.29]
[1693921785007,98.4744,19.738,19.725,7.908]
[1693921785214,391.5,19.741,19.726,55.0]
[1693921785416,7.9,19.745,19.73,7.906]
[1693921787221,62.901,19.744,19.73,7.906]
[1693921787592,7.901,19.744,19.73,7.906]
[1693921788798,7.901,19.744,19.726,55.0]
[1693921788999,55.0,19.743,19.728,7.907]
[1693921789221,7.902,19.741,19.728,7.907]
[1693921790507,7.902,19.741,19.722,25.554]
[1693921790708,55.0,19.74,19.725,7.908]
[1693921791120,7.903,19.738,19.725,7.908]
[1693921791300,55.0,19.737,19.725,7.908]
[1693921791812,62.904,19.737,19.725,7.908]
[1693921792020,153.8606,19.737,19.725,7.908]
[1693921793540,153.8606,19.737,19.722,25.554]
[1693921793699,153.8606,19.737,19.723,20.0]
[1693921795105,153.8606,19.737,19.724,7.908]
[1693921795507,153.8606,19.737,19.723,20.0]
[1693921795695,153.8606,19.737,19.723,27.909]
[1693921798415,145.9566,19.737,19.723,27.909]
[1693921802222,153.8596,19.737,19.723,27.909]
[1693921803120,145.9566,19.737,19.723,27.909]
[1693921803512,90.9566,19.737,19.723,27.909]
[1693921805510,98.8606,19.737,19.723,27.909]
[1693921810218,90.9566,19.737,19.723,27.909]
[1693921811115,98.8606,19.737,19.723,27.909]
[1693921811633,55.0,19.736,19.723,27.909]
[1693921811819,62.904,19.736,19.723,27.909]
[1693921813820,55.0,19.736,19.723,27.909]
[1693921814434,62.904,19.736,19.723,27.909]
[1693921814934,55.0,19.736,19.723,27.909]
[1693921815410,90.9566,19.737,19.723,27.909]
[1693921815616,90.9566,19.737,19.727,7.907]
[1693921816310,90.9566,19.737,19.724,55.0]
[1693921817330,90.9566,19.737,19.724,62.908]
[1693921818427,55.707,19.746,19.724,62.908]
[1693921818428,41.75626342,19.747,19.724,62.908]
[1693921818637,95.8257,19.745,19.73,31.29]
[1693921818823,95.8257,19.745,19.734,33.443]
[1693921819226,95.8257,19.745,19.734,7.904]
[1693921824022,7.899,19.75,19.734,7.904]
[1693921824225,391.5,19.751,19.735,55.0]
[1693921824534,391.5,19.751,19.739,7.902]
[1693921825023,391.5,19.751,19.742,7.901]
[1693921825221,22.99431373,19.754,19.742,7.901]
[1693921825422,22.99431373,19.754,19.74,7.902]
[1693921826040,22.99431373,19.754,19.739,23.08612]
[1693921826827,55.0,19.753,19.739,23.08612]
[1693921827028,62.897,19.753,19.739,23.08612]
[1693921828336,184.36822204,19.77,19.74,82.58]
[1693921828544,153.07822204,19.77,19.749,89.118]
[1693921828732,153.07822204,19.77,19.75,106.29]
[1693921828941,90.8963,19.769,19.756,33.407]
[1693921829441,153.07822204,19.77,19.76,120.354]
[1693921829635,9.115,19.774,19.764,89.045]
[1693921829941,9.115,19.774,19.767,7.891]
[1693921830245,15.22469635,19.777,19.768,55.99999011]
[1693921830431,482.3963,19.79,19.77,245.469]
[1693921830627,90.8963,19.79,19.771,127.15356583]
[1693921830839,98.7793,19.79,19.774,7.888]
[1693921831322,98.7793,19.79,19.768,129.53285324]
[1693921831323,130.0693,19.79,19.768,129.53285324]
[1693921831529,164.333,19.79,19.772,2.77745289]
[1693921831742,20.0,19.789,19.772,2.77745289]
[1693921831929,33.36,19.784,19.763,3.49181124]
[1693921832131,33.36,19.784,19.761,3.49181124]
[1693921832331,33.36,19.784,19.761,120.60786859]
[1693921832841,55.0,19.783,19.761,120.60786859]
[1693921833047,7.886,19.781,19.761,120.60786859]
[1693921833245,55.0,19.78,19.761,120.60786859]
[1693921833432,62.886,19.78,19.762,20.0]
[1693921833633,62.886,19.78,19.763,59.06541853]
[1693921833833,91.2006,19.779,19.764,20.0]
[1693921834041,7.887,19.778,19.765,4.0728612]
[1693921834233,91.2006,19.779,19.763,4.42059983]
[1693921834636,7.886,19.782,19.763,4.42059983]
[1693921835331,55.0,19.781,19.763,4.42059983]
[1693921835533,7.887,19.779,19.763,4.42059983]
[1693921835734,55.0,19.778,19.763,4.42059983]
[1693921835936,7.888,19.775,19.758,20.0]
[1693921836127,55.0,19.774,19.759,4.42059983]
[1693921836327,7.889,19.773,19.759,4.42059983]
[1693921836544,55.0,19.772,19.755,4.42059983]
[1693921836725,7.891,19.769,19.755,4.42059983]
[1693921837042,55.0,19.768,19.753,24.42059983]
[1693921837241,91.2006,19.777,19.754,15.17159]